Workbook

Sheet Exam
B2: DAFTAR NILAI EXAM ACTION PROGRAM
B3: STMIK AMIKOM PURWOKERTO
B4: Materi : Microsoft Office 2010
B6: NO | C6: STIDENT ID | D6: NAMA PESERTA | E6: NIM | F6: WORD | G6: EXCEL | H6: POWERPOINT | I6: AVERAGE | J6: RESULT
B7: 1 | C7: 15DL00001 | D7: Abdul Aziz Al Farisy | E7: 12.11.0292 | F7: 86 | G7: 63 | H7: 90 | I7: =ROUND(AVERAGE(F7:H7),2) -> 79.67 | J7: =IF(I7>50,"Pass","Fail") -> Pass
B8: 2 | C8: 15DL00002 | D8: Abdul Ghofar Romadhon | E8: 11.12.2099 | F8: 70 | G8: 60 | H8: 70 | I8: =ROUND(AVERAGE(F8:H8),2) -> 66.67 | J8: =IF(I8>50,"Pass","Fail") -> Pass
B9: 3 | C9: 15DL00003 | D9: Abdul Karim | E9: 12.12.0347 | F9: 80 | G9: 50 | H9: 66 | I9: 65.33 | J9: Pass
B10: 4 | C10: 15DL00004 | D10: Abdul Majid Abidin | E10: 11.11.2400 | F10: 86 | G10: 80 | H10: 83 | I10: 83 | J10: Pass
B11: 5 | C11: 15DL00005 | D11: Abdul Malik Maulana | E11: 12.12.0101 | F11: 70 | G11: 63 | H11: 70 | I11: 67.67 | J11: Pass
B12: 6 | C12: 15DL00006 | D12: Abdullah Cahya Iswahyudi | E12: 11.11.2582 | F12: 73 | G12: 60 | H12: 66 | I12: 66.33 | J12: Pass
B13: 7 | C13: 15DL00007 | D13: Abid Nugroho | E13: 12.11.0425 | F13: 66 | G13: 50 | H13: 56 | I13: 57.33 | J13: Pass
B14: 8 | C14: 15DL00008 | D14: Achas Fathdlianto | E14: 12.11.0309 | F14: 90 | G14: 70 | H14: 86 | I14: 82 | J14: Pass
B15: 9 | C15: 15DL00009 | D15: Adam Maulana | E15: 12.11.0203 | F15: 73 | G15: 63 | H15: 73 | I15: 69.67 | J15: Pass
B16: 10 | C16: 15DL00010 | D16: Ade Julantri Wibowo | E16: 12.11.0333 | F16: 63 | G16: 50 | H16: 63 | I16: 58.67 | J16: Pass
B17: 11 | C17: 15DL00011 | D17: Adelina Yuliani | E17: 11.12.2119 | F17: 80 | G17: 56 | H17: 73 | I17: 69.67 | J17: Pass
B18: 12 | C18: 15DL00012 | D18: Adhitya Dwi Santoso | E18: 11.12.2089 | F18: 60 | G18: 50 | H18: 50 | I18: 53.33 | J18: Pass
B19: 13 | C19: 15DL00013 | D19: Adi Dwi Rizki | E19: 12.11.0137 | F19: 66 | G19: 70 | H19: 66 | I19: 67.33 | J19: Pass
B20: 14 | C20: 15DL00014 | D20: Adi Pringgo Yunanto | E20: 12.11.0214 | F20: 76 | G20: 63 | H20: 73 | I20: 70.67 | J20: Pass
B21: 15 | C21: 15DL00015 | D21: Adies Saputra | E21: 12.11.0288 | F21: 86 | G21: 70 | H21: 96 | I21: 84 | J21: Pass
B22: 16 | C22: 15DL00016 | D22: Adistria Devitasari | E22: 11.12.2095 | F22: 56 | G22: 50 | H22: 63 | I22: 56.33 | J22: Pass
B23: 17 | C23: 15DL00017 | D23: Aditiyasa Bayu Saputra | E23: 12.11.0048 | F23: 76 | G23: 66 | H23: 83 | I23: 75 | J23: Pass
B24: 18 | C24: 15DL00018 | D24: Aditya Anggit Pamungkas | E24: 12.11.0307 | F24: 50 | G24: 23 | H24: 43 | I24: 38.67 | J24: Fail
B25: 19 | C25: 15DL00019 | D25: Aditya Eka Prabowo | E25: 12.11.0045 | F25: 80 | G25: 60 | H25: 66 | I25: 68.67 | J25: Pass
B26: 20 | C26: 15DL00020 | D26: Aditya Nukgraha | E26: 11.11.2580 | F26: 76 | G26: 56 | H26: 80 | I26: 70.67 | J26: Pass
B27: 21 | C27: 15DL00021 | D27: Aditya Prabowo | E27: 12.11.0140 | F27: 90 | G27: 80 | H27: 70 | I27: 80 | J27: Pass
B28: 22 | C28: 15DL00022 | D28: Aditya Putra Pratama | E28: 11.12.2666 | F28: 66 | G28: 50 | H28: 63 | I28: 59.67 | J28: Pass
B29: 23 | C29: 15DL00023 | D29: Adlan Nugroho | E29: 12.11.0414 | F29: 93 | G29: 76 | H29: 93 | I29: 87.33 | J29: Pass
B30: 24 | C30: 15DL00024 | D30: Afhail Lucqqi S | E30: 12.11.0092 | F30: 76 | G30: 63 | H30: 83 | I30: 74 | J30: Pass
B31: 25 | C31: 15DL00025 | D31: Afid Muhamad Pambudi | E31: 12.12.0263 | F31: 76 | G31: 53 | H31: 83 | I31: 70.67 | J31: Pass
B32: 26 | C32: 15DL00026 | D32: Afifa | E32: 11.11.2372 | F32: 83 | G32: 56 | H32: 80 | I32: 73 | J32: Pass
B33: 27 | C33: 15DL00027 | D33: Afik Wicahyo Adi Putra | E33: 11.11.2545 | F33: 56 | G33: 50 | H33: 60 | I33: 55.33 | J33: Pass
B34: 28 | C34: 15DL00028 | D34: Afrizal Fajri | E34: 12.11.0157 | F34: 90 | G34: 83 | H34: 90 | I34: 87.67 | J34: Pass
B35: 29 | C35: 15DL00030 | D35: Agatha Frintyas Adnan | E35: 12.12.0321 | F35: 63 | G35: 66 | H35: 73 | I35: 67.33 | J35: Pass
B36: 30 | C36: 15DL00031 | D36: Agil Yanuar | E36: 12.12.0039 | F36: 83 | G36: 73 | H36: 80 | I36: 78.67 | J36: Pass
B37: 31 | C37: 15DL00032 | D37: Agnes Wiene Berliandery | E37: 12.12.0181 | F37: 53 | G37: 70 | H37: 73 | I37: 65.33 | J37: Pass
B38: 32 | C38: 15DL00033 | D38: Agung Budianto | E38: 12.11.0072 | F38: 73 | G38: 63 | H38: 76 | I38: 70.67 | J38: Pass
B39: 33 | C39: 15DL00035 | D39: Agung Hermawan | E39: 12.12.0063 | F39: 80 | G39: 70 | H39: 83 | I39: 77.67 | J39: Pass
B40: 34 | C40: 15DL00036 | D40: Agung Isnandar | E40: 11.11.2529 | F40: 80 | G40: 76 | H40: 63 | I40: 73 | J40: Pass
B41: 35 | C41: 15DL00037 | D41: Agung Satria | E41: 11.12.2080 | F41: 83 | G41: 80 | H41: 86 | I41: 83 | J41: Pass
B42: 36 | C42: 15DL00038 | D42: Agung Teguh W | E42: 12.11.0104 | F42: 83 | G42: 60 | H42: 73 | I42: 72 | J42: Pass
B43: 37 | C43: 15DL00039 | D43: Agus Andriadi | E43: 11.12.2051 | F43: 80 | G43: 60 | H43: 83 | I43: 74.33 | J43: Pass
B44: 38 | C44: 15DL00040 | D44: Agus Gunawan | E44: 11.12.2205 | F44: 66 | G44: 66 | H44: 53 | I44: 61.67 | J44: Pass
B45: 39 | C45: 15DL00041 | D45: Agus Muhalimin | E45: 12.12.0034 | F45: 76 | G45: 56 | H45: 50 | I45: 60.67 | J45: Pass
B46: 40 | C46: 15DL00042 | D46: Agus Prabowo | E46: 12.11.0202 | F46: 86 | G46: 66 | H46: 86 | I46: 79.33 | J46: Pass
B47: 41 | C47: 15DL00043 | D47: Agus Priadi | E47: 11.12.2127 | F47: 60 | G47: 50 | H47: 60 | I47: 56.67 | J47: Pass
B48: 42 | C48: 15DL00044 | D48: Agus Setiawan | E48: 12.11.0097 | F48: 76 | G48: 70 | H48: 86 | I48: 77.33 | J48: Pass
B49: 43 | C49: 15DL00045 | D49: Agus Tri Atno | E49: 12.11.0001 | F49: 83 | G49: 70 | H49: 83 | I49: 78.67 | J49: Pass
B50: 44 | C50: 15DL00046 | D50: Agustin Ma'furi | E50: 11.12.2065 | F50: 73 | G50: 50 | H50: 70 | I50: 64.33 | J50: Pass
B51: 45 | C51: 15DL00047 | D51: Ahlul Abdi Pamungkas | E51: 12.11.0355 | F51: 66 | G51: 53 | H51: 80 | I51: 66.33 | J51: Pass
B52: 46 | C52: 15DL00048 | D52: Ahmad Arif Saputra | E52: 12.11.0053 | F52: 86 | G52: 70 | H52: 93 | I52: 83 | J52: Pass
B53: 47 | C53: 15DL00049 | D53: Ahmad Faishal Huda | E53: 12.11.0258 | F53: 80 | G53: 76 | H53: 73 | I53: 76.33 | J53: Pass
B54: 48 | C54: 15DL00050 | D54: Ahmad Fikri Fauzan | E54: 11.11.2537 | F54: 50 | G54: 50 | H54: 56 | I54: 52 | J54: Pass
B55: 49 | C55: 15DL00051 | D55: Ahmad Mukti A | E55: 11.11.2496 | F55: 90 | G55: 76 | H55: 86 | I55: 84 | J55: Pass
B56: 50 | C56: 15DL00052 | D56: Ahmad Rizki Dimyati | E56: 11.12.2238 | F56: 93 | G56: 66 | H56: 93 | I56: 84 | J56: Pass
B57: 51 | C57: 15DL00053 | D57: Ahmad Zainurrochman | E57: 12.11.0009 | F57: 83 | G57: 60 | H57: 86 | I57: 76.33 | J57: Pass
B58: 52 | C58: 15DL00054 | D58: Ahmadillah Fiqqih | E58: 12.11.0188 | F58: 70 | G58: 56 | H58: 80 | I58: 68.67 | J58: Pass
B59: 53 | C59: 15DL00055 | D59: Ahmar Kage | E59: 12.11.0358 | F59: 73 | G59: 53 | H59: 60 | I59: 62 | J59: Pass
B60: 54 | C60: 15DL00056 | D60: Aji Gunawan | E60: 12.12.0229 | F60: 73 | G60: 50 | H60: 60 | I60: 61 | J60: Pass
B61: 55 | C61: 15DL00057 | D61: Aji Widiatmojo | E61: 12.11.0308 | F61: 70 | G61: 53 | H61: 66 | I61: 63 | J61: Pass
B62: 56 | C62: 15DL00058 | D62: Akhmad Hidayat Syah | E62: 12.11.0281 | F62: 73 | G62: 50 | H62: 73 | I62: 65.33 | J62: Pass
B63: 57 | C63: 15DL00059 | D63: Akhmad Sidiq Permana | E63: 10.12.1336 | F63: 50 | G63: 50 | H63: 76 | I63: 58.67 | J63: Pass
B64: 58 | C64: 15DL00060 | D64: Alan Widi Gunawan | E64: 11.12.2063 | F64: 60 | G64: 50 | H64: 66 | I64: 58.67 | J64: Pass
B65: 59 | C65: 15DL00061 | D65: Aldy Noor Armanda | E65: 12.11.0217 | F65: 70 | G65: 56 | H65: 86 | I65: 70.67 | J65: Pass
B66: 60 | C66: 15DL00062 | D66: Alfi Restiana | E66: 12.12.0025 | F66: 76 | G66: 63 | H66: 70 | I66: 69.67 | J66: Pass
B67: 61 | C67: 15DL00063 | D67: Alfin Nur Aziz Saputra | E67: 12.11.0154 | F67: 90 | G67: 83 | H67: 100 | I67: 91 | J67: Pass
B68: 62 | C68: 15DL00064 | D68: Alfiyah | E68: 12.11.0041 | F68: 86 | G68: 50 | H68: 66 | I68: 67.33 | J68: Pass
B69: 63 | C69: 15DL00065 | D69: Alifi Arman Batutta | E69: 12.12.0299 | F69: 70 | G69: 63 | H69: 86 | I69: 73 | J69: Pass
B70: 64 | C70: 15DL00066 | D70: Alinda Sekar Primanita | E70: 11.12.2013 | G70: 23
B71: 65 | C71: 15DL00067 | D71: Alip Udin | E71: 12.11.0356 | F71: 60 | G71: 50 | H71: 56 | I71: 55.33 | J71: Pass
B72: 66 | C72: 15DL00068 | D72: Aliq Nur Rokhman | E72: 12.12.0282 | F72: 73 | G72: 63 | H72: 80 | I72: =ROUND(AVERAGE(F72:H72),2) -> 72 | J72: =IF(I72>50,"Pass","Fail") -> Pass
B73: 67 | C73: 15DL00069 | D73: Alis Rahmawati | E73: 12.11.0411 | F73: 73 | G73: 56 | H73: 80 | I73: 69.67 | J73: Pass
B74: 68 | C74: 15DL00070 | D74: Alit Aryuningka | E74: 11.12.2304 | F74: 66 | G74: 50 | H74: 66 | I74: 60.67 | J74: Pass
B75: 69 | C75: 15DL00071 | D75: Allen Zaenudin | E75: 11.11.2575 | F75: 66 | G75: 70 | H75: 76 | I75: 70.67 | J75: Pass
B76: 70 | C76: 15DL00072 | D76: Alma Sabila | E76: 12.12.0341 | F76: 73 | G76: 53 | H76: 66 | I76: 64 | J76: Pass
B77: 71 | C77: 15DL00073 | D77: Ambar Dwi Cahyani | E77: 12.12.0035 | F77: 83 | G77: 66 | H77: 86 | I77: 78.33 | J77: Pass
B78: 72 | C78: 15DL00074 | D78: Amin Nurdin P | E78: 12.12.0093 | F78: 50 | G78: 63 | H78: 60 | I78: 57.67 | J78: Pass
B79: 73 | C79: 15DL00075 | D79: Amrizal Fathurohman | E79: 12.12.0092 | F79: 86 | G79: 50 | H79: 66 | I79: 67.33 | J79: Pass
B80: 74 | C80: 15DL00076 | D80: Ana Resa Septianti | E80: 12.11.0128 | F80: 56 | G80: 70 | H80: 56 | I80: 60.67 | J80: Pass
B81: 75 | C81: 15DL00077 | D81: Ana Susanti | E81: 12.12.0194 | F81: 80 | G81: 63 | H81: 86 | I81: 76.33 | J81: Pass
B82: 76 | C82: 15DL00078 | D82: Anang Nur Lutfianto | E82: 11.12.2171 | F82: 86 | G82: 60 | H82: 90 | I82: 78.67 | J82: Pass
B83: 77 | C83: 15DL00079 | D83: Anang Wicaksono | E83: 12.12.0312 | F83: 66 | G83: 53 | H83: 63 | I83: 60.67 | J83: Pass
B84: 78 | C84: 15DL00080 | D84: Anas Khanafi | E84: 11.11.2511 | F84: 86 | G84: 73 | H84: 70 | I84: 76.33 | J84: Pass
B85: 79 | C85: 15DL00081 | D85: Andalies Zuci Pertami | E85: 11.12.2165 | F85: 83 | G85: 70 | H85: 83 | I85: 78.67 | J85: Pass
B86: 80 | C86: 15DL00082 | D86: Andhika Prabowo | E86: 13.12.0048 | F86: 73 | G86: 83 | H86: 83 | I86: 79.67 | J86: Pass
B87: 81 | C87: 15DL00083 | D87: Andhika Wahyu Ristanto | E87: 12.11.0352 | F87: 76 | G87: 60 | H87: 70 | I87: 68.67 | J87: Pass
B88: 82 | C88: 15DL00084 | D88: Andi Siswanto | E88: 11.11.2466 | F88: 76 | G88: 66 | H88: 80 | I88: 74 | J88: Pass
B89: 83 | C89: 15DL00085 | D89: Andika Ardiansyah | E89: 11.12.2662 | F89: 70 | G89: 50 | H89: 60 | I89: 60 | J89: Pass
B90: 84 | C90: 15DL00086 | D90: Andika Robintang Purba | E90: 11.12.2255 | F90: 76 | G90: 66 | H90: 93 | I90: 78.33 | J90: Pass
B91: 85 | C91: 15DL00087 | D91: Andre Wijaya | E91: 11.11.2359 | F91: 70 | G91: 50 | H91: 80 | I91: 66.67 | J91: Pass
B92: 86 | C92: 15DL00088 | D92: Andri Kurniawan | E92: 08.12.0635 | F92: 73 | G92: 63 | H92: 66 | I92: 67.33 | J92: Pass
B93: 87 | C93: 15DL00089 | D93: Andri Setyawan | E93: 12.11.0298 | F93: 63 | G93: 50 | H93: 70 | I93: 61 | J93: Pass
B94: 88 | C94: 15DL00090 | D94: Andri Susilo | E94: 11.11.2414 | F94: 66 | G94: 50 | H94: 60 | I94: 58.67 | J94: Pass
B95: 89 | C95: 15DL00091 | D95: Andry Wahyu Winarto | E95: 12.11.0263 | F95: 50 | G95: 50 | H95: 60 | I95: 53.33 | J95: Pass
B96: 90 | C96: 15DL00092 | D96: Anggi Maolana M H | E96: 12.11.0369 | F96: 70 | G96: 56 | H96: 76 | I96: 67.33 | J96: Pass
B97: 91 | C97: 15DL00093 | D97: Anggit Panca Nataleon | E97: 12.12.0029 | F97: 76 | G97: 76 | H97: 63 | I97: 71.67 | J97: Pass
B98: 92 | C98: 15DL00094 | D98: Anggit Prasetya Adi | E98: 12.11.0429 | F98: 73 | G98: 50 | H98: 73 | I98: 65.33 | J98: Pass
B99: 93 | C99: 15DL00095 | D99: Anggit Prasetyo | E99: 12.11.0366 | F99: 73 | G99: 80 | H99: 80 | I99: 77.67 | J99: Pass
B100: 94 | C100: 15DL00096 | D100: Anggita Novi Nur Utami | E100: 11.12.2148 | F100: 83 | G100: 70 | H100: 80 | I100: 77.67 | J100: Pass
B101: 95 | C101: 15DL00097 | D101: Anik Setyowati | E101: 12.12.0265 | F101: 63 | G101: 60 | H101: 66 | I101: 63 | J101: Pass
B102: 96 | C102: 15DL00098 | D102: Anisya Anindityarani | E102: 11.11.2632 | F102: 66 | G102: 70 | H102: 90 | I102: 75.33 | J102: Pass
B103: 97 | C103: 15DL00099 | D103: Anjar Harimukti | E103: 11.11.2393 | F103: 93 | G103: 83 | H103: 90 | I103: 88.67 | J103: Pass
B104: 98 | C104: 15DL00100 | D104: Anjar Prasetyo | E104: 12.12.0040 | F104: 83 | G104: 76 | H104: 76 | I104: 78.33 | J104: Pass
B105: 99 | C105: 15DL00101 | D105: Anjas Yan Permana | E105: 12.12.0088 | F105: 73 | G105: 60 | H105: 70 | I105: 67.67 | J105: Pass
B106: 100 | C106: 15DL00102 | D106: Anjum Panji Iswardani | E106: 12.11.0158 | F106: 53 | G106: 30 | H106: 36 | I106: 39.67 | J106: Fail
B107: 101 | C107: 15DL00103 | D107: Anton Nugroho | E107: 11.11.2352 | F107: 90 | G107: 63 | H107: 90 | I107: 81 | J107: Pass
B108: 102 | C108: 15DL00104 | D108: Anugrah Isnan Safriono | E108: 12.11.0413 | F108: 70 | G108: 56 | H108: 83 | I108: 69.67 | J108: Pass
B109: 103 | C109: 15DL00105 | D109: Anwar Hidayat | E109: 12.11.0349 | F109: 66 | G109: 56 | H109: 76 | I109: 66 | J109: Pass
B110: 104 | C110: 15DL00106 | D110: Apit Prisambodo | E110: 12.12.0068 | F110: 70 | G110: 70 | H110: 80 | I110: 73.33 | J110: Pass
B111: 105 | C111: 15DL00107 | D111: Apri Anjar Pratama | E111: 12.11.0262 | F111: 73 | G111: 56 | H111: 60 | I111: 63 | J111: Pass
B112: 106 | C112: 15DL00108 | D112: Apri Setiyaningrum | E112: 12.11.0266 | F112: 70 | G112: 80 | H112: 90 | I112: 80 | J112: Pass
B113: 107 | C113: 15DL00109 | D113: Apriyanto | E113: 11.11.2628 | F113: 56 | G113: 26 | H113: 43 | I113: 41.67 | J113: Fail
B114: 108 | C114: 15DL00110 | D114: Arbarokah Setiamukti | E114: 12.11.0417 | F114: 70 | G114: 50 | H114: 66 | I114: 62 | J114: Pass
B115: 109 | C115: 15DL00111 | D115: Ardan Ferliyanto | E115: 12.11.0271 | F115: 70 | G115: 50 | H115: 50 | I115: 56.67 | J115: Pass
B116: 110 | C116: 15DL00112 | D116: Ardan Hamdani | E116: 12.11.0329 | F116: 80 | G116: 80 | H116: 83 | I116: 81 | J116: Pass
B117: 111 | C117: 15DL00113 | D117: Ardhitya Lingga Yuli S | E117: 12.12.0058 | F117: 60 | G117: 56 | H117: 70 | I117: 62 | J117: Pass
B118: 112 | C118: 15DL00114 | D118: Ardi Nugroho | E118: 12.12.0094 | F118: 66 | G118: 50 | H118: 70 | I118: 62 | J118: Pass
B119: 113 | C119: 15DL00115 | D119: Argo Sumbawan | E119: 12.12.0232 | F119: 70 | G119: 53 | H119: 73 | I119: 65.33 | J119: Pass
B120: 114 | C120: 15DL00116 | D120: Ari Sulistyaningsih | E120: 12.12.0122 | F120: 70 | G120: 66 | H120: 70 | I120: 68.67 | J120: Pass
B121: 115 | C121: 15DL00117 | D121: Arief Moyo Yudhistiro | E121: 11.11.2415 | F121: 56 | G121: 50 | H121: 60 | I121: 55.33 | J121: Pass
B122: 116 | C122: 15DL00118 | D122: Arif Desmawan Supianto P | E122: 12.12.0287 | F122: 76 | G122: 70 | H122: 76 | I122: 74 | J122: Pass
B123: 117 | C123: 15DL00119 | D123: Arif Dwi Yuliadi | E123: 11.11.2595 | F123: 76 | G123: 76 | H123: 73 | I123: 75 | J123: Pass
B124: 118 | C124: 15DL00120 | D124: Arif Hidayattuloh | E124: 11.11.2411 | F124: 73 | G124: 63 | H124: 70 | I124: 68.67 | J124: Pass
B125: 119 | C125: 15DL00121 | D125: Arif Kunto Aditya | E125: 12.11.0210 | F125: 63 | G125: 50 | H125: 63 | I125: 58.67 | J125: Pass
B126: 120 | C126: 15DL00122 | D126: Arif Mujib Arrohman | E126: 11.11.2522 | F126: 60 | G126: 50 | H126: 73 | I126: 61 | J126: Pass
B127: 121 | C127: 15DL00123 | D127: Arif Nur Pratama | E127: 12.12.0164 | F127: 70 | G127: 53 | H127: 73 | I127: 65.33 | J127: Pass
B128: 122 | C128: 15DL00124 | D128: Arif S Setiyono | E128: 12.11.0049 | F128: 80 | G128: 53 | H128: 80 | I128: 71 | J128: Pass
B129: 123 | C129: 15DL00125 | D129: Arif Setyawan Saputra | E129: 12.12.0355 | F129: 36 | G129: 16 | H129: 23 | I129: 25 | J129: Fail
B130: 124 | C130: 15DL00126 | D130: Arin Kurniawati | E130: 12.11.0039 | F130: 73 | G130: 66 | H130: 86 | I130: 75 | J130: Pass
B131: 125 | C131: 15DL00127 | D131: Aris Budianto | E131: 12.11.0163 | F131: 80 | G131: 66 | H131: 86 | I131: 77.33 | J131: Pass
B132: 126 | C132: 15DL00128 | D132: Arjun Hermawan | E132: 12.11.0215 | F132: 70 | G132: 50 | H132: 60 | I132: 60 | J132: Pass
B133: 127 | C133: 15DL00129 | D133: Arman Suciyanto | E133: 12.12.0218 | F133: 53 | G133: 56 | H133: 60 | I133: 56.33 | J133: Pass
B134: 128 | C134: 15DL00130 | D134: Armeylia Ninda Tanzilla | E134: 12.11.0347 | F134: 70 | G134: 70 | H134: 83 | I134: 74.33 | J134: Pass
B135: 129 | C135: 15DL00131 | D135: Arum Kristiyanti | E135: 11.12.2214 | F135: 73 | G135: 56 | H135: 73 | I135: 67.33 | J135: Pass
B136: 130 | C136: 15DL00132 | D136: Asep Probo Egiana | E136: 12.11.0165 | F136: 73 | G136: 66 | H136: 83 | I136: =ROUND(AVERAGE(F136:H136),2) -> 74 | J136: =IF(I136>50,"Pass","Fail") -> Pass
B137: 131 | C137: 15DL00133 | D137: Asep Widi Oktian | E137: 11.12.2247 | F137: 90 | G137: 70 | H137: 76 | I137: 78.67 | J137: Pass
B138: 132 | C138: 15DL00134 | D138: Asep Widodo | E138: 12.11.0289 | F138: 80 | G138: 76 | H138: 80 | I138: 78.67 | J138: Pass
B139: 133 | C139: 15DL00135 | D139: Asep Yoga Permana | E139: 11.12.2208 | F139: 66 | G139: 60 | H139: 63 | I139: 63 | J139: Pass
B140: 134 | C140: 15DL00136 | D140: Aska Ardianta S | E140: 12.11.0032 | F140: 63 | G140: 73 | H140: 66 | I140: 67.33 | J140: Pass
B141: 135 | C141: 15DL00137 | D141: Assatri Zakariya Ghois | E141: 12.11.0432 | F141: 90 | G141: 63 | H141: 83 | I141: 78.67 | J141: Pass
B142: 136 | C142: 15DL00138 | D142: Asti Yuniarti | E142: 11.11.2405 | F142: 66 | G142: 50 | H142: 50 | I142: 55.33 | J142: Pass
B143: 137 | C143: 15DL00139 | D143: Aswyne Akbar Prayogi | E143: 12.11.0359 | F143: 60 | G143: 63 | H143: 66 | I143: 63 | J143: Pass
B144: 138 | C144: 15DL00140 | D144: Atmi Widiasnani | E144: 12.11.0021 | F144: 60 | G144: 66 | H144: 60 | I144: 62 | J144: Pass
B145: 139 | C145: 15DL00141 | D145: Attin Albaina | E145: 12.12.0210 | F145: 90 | G145: 63 | H145: 80 | I145: 77.67 | J145: Pass
B146: 140 | C146: 15DL00142 | D146: Avrillia Nur Rizky | E146: 12.12.0256 | F146: 76 | G146: 73 | H146: 80 | I146: 76.33 | J146: Pass
B147: 141 | C147: 15DL00144 | D147: Ayub Anis Sulfuad | E147: 11.12.2118 | F147: 76 | G147: 60 | H147: 50 | I147: 62 | J147: Pass
B148: 142 | C148: 15DL00145 | D148: Azis Hermawan | E148: 10.12.1757 | F148: 60 | G148: 70 | H148: 60 | I148: 63.33 | J148: Pass
B149: 143 | C149: 15DL00146 | D149: Baeta Suroyya | E149: 12.11.0004 | F149: 50 | G149: 56 | H149: 83 | I149: 63 | J149: Pass
B150: 144 | C150: 15DL00147 | D150: Bagus Danang Prakoso | E150: 12.11.0084 | G150: 56 | H150: 73
B151: 145 | C151: 15DL00148 | D151: Bakti Raharjo | E151: 12.11.0167 | F151: 50 | G151: 53 | H151: 60 | I151: 54.33 | J151: Pass
B152: 146 | C152: 15DL00149 | D152: Bangkit Jauhari | E152: 12.12.0128 | F152: 70 | G152: 50 | H152: 70 | I152: 63.33 | J152: Pass
B153: 147 | C153: 15DL00150 | D153: Bani Aenul Yaqin | E153: 12.11.0161 | F153: 73 | G153: 50 | H153: 76 | I153: 66.33 | J153: Pass
B154: 148 | C154: 15DL00151 | D154: Banny Agil Wicaksono | E154: 11.12.2136 | F154: 53 | G154: 53 | H154: 63 | I154: 56.33 | J154: Pass
B155: 149 | C155: 15DL00152 | D155: Barid Baroroh | E155: 11.11.2488 | F155: 63 | G155: 56 | H155: 66 | I155: 61.67 | J155: Pass
B156: 150 | C156: 15DL00153 | D156: Barokah Nur Pratiwi | E156: 11.12.2146 | F156: 73 | G156: 66 | H156: 56 | I156: 65 | J156: Pass
B157: 151 | C157: 15DL00154 | D157: Barokatu Romadlon | E157: 12.11.0383 | F157: 86 | G157: 76 | H157: 90 | I157: 84 | J157: Pass
B158: 152 | C158: 15DL00155 | D158: Barry Fadli | E158: 12.12.0275 | F158: 76 | G158: 50 | H158: 80 | I158: 68.67 | J158: Pass
B159: 153 | C159: 15DL00156 | D159: Bayu Dwi Winarno | E159: 12.11.0249 | F159: 66 | G159: 70 | H159: 73 | I159: 69.67 | J159: Pass
B160: 154 | C160: 15DL00157 | D160: Bayu Kresna Setiaji | E160: 11.11.2602 | F160: 76 | G160: 83 | H160: 93 | I160: 84 | J160: Pass
B161: 155 | C161: 15DL00159 | D161: Bayu Prasetyo | E161: 12.11.0399 | F161: 60 | G161: 66 | H161: 60 | I161: 62 | J161: Pass
B162: 156 | C162: 15DL00160 | D162: Bayu Wicaksono | E162: 12.11.0393 | F162: 86 | G162: 76 | H162: 80 | I162: 80.67 | J162: Pass
B163: 157 | C163: 15DL00161 | D163: Benaventura Dhani Cahya | E163: 11.12.2269 | F163: 86 | G163: 76 | H163: 80 | I163: 80.67 | J163: Pass
B164: 158 | C164: 15DL00162 | D164: Benedikta Bella Adityana | E164: 12.12.0080 | F164: 93 | G164: 76 | H164: 90 | I164: 86.33 | J164: Pass
B165: 159 | C165: 15DL00163 | D165: Beni Prasetyo | E165: 12.11.0229 | F165: 56 | G165: 56 | H165: 50 | I165: 54 | J165: Pass
B166: 160 | C166: 15DL00164 | D166: Billy Jodi Setiawan | E166: 12.11.0375 | F166: 80 | G166: 60 | H166: 86 | I166: 75.33 | J166: Pass
B167: 161 | C167: 15DL00165 | D167: Bima Angga Nugraha | E167: 11.11.2508 | F167: 76 | G167: 50 | H167: 70 | I167: 65.33 | J167: Pass
B168: 162 | C168: 15DL00166 | D168: Bimo Rahman Prasetyo | E168: 11.11.2467 | F168: 63 | G168: 53 | H168: 76 | I168: 64 | J168: Pass
B169: 163 | C169: 15DL00167 | D169: Bondan Prihatnolo | E169: 12.11.0423 | F169: 70 | G169: 53 | H169: 50 | I169: 57.67 | J169: Pass
B170: 164 | C170: 15DL00168 | D170: Budi Haryanto | E170: 12.11.0095 | F170: 76 | G170: 80 | H170: 76 | I170: 77.33 | J170: Pass
B171: 165 | C171: 15DL00169 | D171: Budi Prasetyo | E171: 12.11.0318 | F171: 73 | G171: 60 | H171: 76 | I171: 69.67 | J171: Pass
B172: 166 | C172: 15DL00170 | D172: Budiono | E172: 11.11.2401 | F172: 66 | G172: 50 | H172: 73 | I172: 63 | J172: Pass
B173: 167 | C173: 15DL00171 | D173: Bugar Henoch Munandar | E173: 13.12.0009 | F173: 76 | G173: 73 | H173: 80 | I173: 76.33 | J173: Pass
B174: 168 | C174: 15DL00172 | D174: Bungsu Taufik Hidayat | E174: 12.12.0182 | F174: 80 | G174: 63 | H174: 86 | I174: 76.33 | J174: Pass
B175: 169 | C175: 15DL00173 | D175: By Wajid Tunas Setiawan | E175: 12.12.0184 | F175: 66 | G175: 66 | H175: 93 | I175: 75 | J175: Pass
B176: 170 | C176: 15DL00174 | D176: Cahyo Mohamad | E176: 12.11.0111 | F176: 50 | G176: 56 | H176: 50 | I176: 52 | J176: Pass
B177: 171 | C177: 15DL00175 | D177: Cahyo Rizky Kurniandi | E177: 12.12.0292 | F177: 70 | G177: 70 | H177: 76 | I177: 72 | J177: Pass
B178: 172 | C178: 15DL00176 | D178: Candra Yogi Hananto | E178: 12.12.0077 | F178: 83 | G178: 70 | H178: 90 | I178: 81 | J178: Pass
B179: 173 | C179: 15DL00177 | D179: Catur Didi Waluyo | E179: 12.11.0117 | F179: 76 | G179: 53 | H179: 80 | I179: 69.67 | J179: Pass
B180: 174 | C180: 15DL00178 | D180: Cerly Widiyawati | E180: 12.11.0168 | F180: 83 | G180: 63 | H180: 86 | I180: 77.33 | J180: Pass
B181: 175 | C181: 15DL00179 | D181: Chaeru Fahmi Mubarok | E181: 12.12.0131 | F181: 66 | G181: 73 | H181: 76 | I181: 71.67 | J181: Pass
B182: 176 | C182: 15DL00180 | D182: Chesarah Sylmi Kaffah | E182: 12.12.0348 | F182: 73 | G182: 56 | H182: 73 | I182: 67.33 | J182: Pass
B183: 177 | C183: 15DL00181 | D183: Chirli Prima Candra | E183: 12.12.0360 | F183: 70 | G183: 53 | H183: 73 | I183: 65.33 | J183: Pass
B184: 178 | C184: 15DL00182 | D184: Christa Adi Ibnu Habrian | E184: 11.12.2263 | F184: 70 | G184: 73 | H184: 60 | I184: 67.67 | J184: Pass
B185: 179 | C185: 15DL00183 | D185: Cynthia Steffi Cliff | E185: 12.12.0037 | F185: 60 | G185: 63 | H185: 76 | I185: 66.33 | J185: Pass
B186: 180 | C186: 15DL00184 | D186: Dadan Suhendar | E186: 11.11.2485 | F186: 73 | G186: 50 | H186: 80 | I186: 67.67 | J186: Pass
B187: 181 | C187: 15DL00185 | D187: Dahrul Abidin | E187: 11.12.2196 | F187: 60 | G187: 50 | H187: 70 | I187: 60 | J187: Pass
B188: 182 | C188: 15DL00186 | D188: Damariani Cahyaningsih | E188: 12.12.0212 | F188: 80 | G188: 66 | H188: 70 | I188: 72 | J188: Pass
B189: 183 | C189: 15DL00187 | D189: Danang Noviyanto | E189: 11.11.2644 | F189: 50 | G189: 63 | H189: 50 | I189: 54.33 | J189: Pass
B190: 184 | C190: 15DL00188 | D190: Danang Sujatmiko | E190: 12.11.0300 | F190: 60 | G190: 50 | H190: 53 | I190: 54.33 | J190: Pass
B191: 185 | C191: 15DL00189 | D191: Dani Arifudin | E191: 12.11.0277 | F191: 76 | G191: 53 | H191: 80 | I191: 69.67 | J191: Pass
B192: 186 | C192: 15DL00190 | D192: Dani Ogi Nuari | E192: 12.11.0342 | F192: 66 | G192: 66 | H192: 50 | I192: 60.67 | J192: Pass
B193: 187 | C193: 15DL00191 | D193: Dany Indra Prasetyo | E193: 11.12.2188 | F193: 60 | G193: 63 | H193: 73 | I193: 65.33 | J193: Pass
B194: 188 | C194: 15DL00192 | D194: Darkim | E194: 12.11.0078 | F194: 51 | G194: 50 | H194: 50 | I194: 50.33 | J194: Pass
B195: 189 | C195: 15DL00193 | D195: David Irwanto | E195: 12.11.0232 | F195: 73 | G195: 70 | H195: 83 | I195: 75.33 | J195: Pass
B196: 190 | C196: 15DL00194 | D196: David Rinaldy .P | E196: 12.12.0140 | F196: 83 | G196: 63 | H196: 73 | I196: 73 | J196: Pass
B197: 191 | C197: 15DL00195 | D197: Deas Pungkyarna | E197: 12.11.0079 | F197: 50 | G197: 50 | H197: 56 | I197: 52 | J197: Pass
B198: 192 | C198: 15DL00196 | D198: Dede Pranoto | E198: 12.12.0223 | F198: 70 | G198: 50 | H198: 50 | I198: 56.67 | J198: Pass
B199: 193 | C199: 15DL00197 | D199: Dede Purnama | E199: 12.11.0362 | F199: 60 | G199: 50 | H199: 56 | I199: 55.33 | J199: Pass
B200: 194 | C200: 15DL00198 | D200: Dede Rosadi | E200: 12.12.0280 | F200: 76 | G200: 70 | H200: 70 | I200: =ROUND(AVERAGE(F200:H200),2) -> 72 | J200: =IF(I200>50,"Pass","Fail") -> Pass
B201: 195 | C201: 15DL00199 | D201: Dedy Setiawan | E201: 12.11.0061 | F201: 66 | G201: 50 | H201: 73 | I201: 63 | J201: Pass
B202: 196 | C202: 15DL00200 | D202: Defri Maulana Efendi | E202: 12.11.0108 | F202: 60 | G202: 50 | H202: 66 | I202: 58.67 | J202: Pass
... 661 more rows
